[Event "European Women-ch 2023"]
[Site "Petrovac"]
[Date "2023.03.21"]
[Round "4.16"]
[White "Stefanova, Antoaneta"]
[Black "Jarocka, Liwia"]
[Result "0-1"]
[ECO "A11"]
[WhiteElo "2435"]
[BlackElo "2181"]
[Annotator "TA"]
[PlyCount "66"]
[EventDate "2023.03.15"]
[EventType "swiss"]
[EventCountry "MNE"]
[SourceTitle "playchess.com"]
[Source "ChessBase"]
[SourceQuality "1"]
[TimeControl "40/5400+30:1800+30"]

{[%evp 12,66,3,0,0,-2,16,-7,14,14,8,-100,-51,-40,-44,-55,-45,-66,-47,-83,-26,-52,-27,-22,38,37,53,29,35,34,45,-95,-85,-212,-218,-366,-368,-347,-342,-1064,-1064,-1036,-698,-686,-682,-2155,-2099,-1784,-768,-1657,-1657,-29966,-29971,-29983,-29984,-29980,-29981]} 1. Nf3 {[%emt 0:01:48]} d5 {[%emt 0:00:29]} 2. c4 {[%emt 0:00:13]} c6 {[%emt 0:00:17]} 3. g3 {[%emt 0:04:08]} Nf6 {[%emt 0:00:28]} 4. Bg2 {[%emt 0:09:24]} dxc4 {[%emt 0:00:15]} 5. O-O {[%emt 0:01:18]} Nbd7 {[%emt 0:00:40]} 6. Qc2 {[%emt 0:05:28]} Nb6 {[%emt 0:01:05]} 7. Na3 {[%emt 0:10:36]} Be6 {[%emt 0:05:06] A11: English Opening: 1...c6.} 8. Re1 {[%emt 0:16:51] [#]} h6 $146 {[%emt 0:10:03] Repels Ng5} ({Predecessor:} 8... g6 9. Ng5 Qd7 10. Nxe6 Qxe6 11. b3 cxb3 12. axb3 Bg7 13. Bb2 O-O 14. e4 Rfd8 15. d4 {½-½ Carlsen,M (2859)-Le,Q (2728) Meltwater Tour Final rapid 2022 (5.3)}) 9. e4 {[%emt 0:07:47]} g6 {[%emt 0:06:03] The position is equal.} (9... Qd3 {keeps more tension.} 10. Qd1 Bg4 11. b3 e6) 10. Bf1 {[%emt 0:06:50][%cal Ra3c4]} Bg7 {[%emt 0:03:29]} 11. Ne5 {[%emt 0:01:32] [#]} (11. Nxc4 $11 O-O 12. d3) 11... Ng4 {[%emt 0:08:22]} (11... h5 $1 $17) 12. Nxg4 $15 {[%emt 0:03:32]} Bxg4 {[%emt 0:00:48]} 13. Nxc4 {[%emt 0:03:00]} Nxc4 {[%emt 0:01:08]} 14. Qxc4 {[%emt 0:00:06]} Be6 {[%emt 0:00:41]} 15. Qc2 {[%emt 0:01:15]} Qb6 {[%emt 0:04:56]} ({Black should play} 15... h5 $17) 16. d3 {[%emt 0:01:44]} O-O-O {[%emt 0:04:14][%cal Ba8d8,Bd8d5,Bd5b5][%mdl 32]} 17. e5 {[%emt 0:02:59]} Bf5 {[%emt 0:05:59]} (17... h5 $11) 18. Be3 $14 {[%emt 0:01:40]} Qb5 {[%emt 0:04:05]} 19. Bxa7 {[%emt 0:05:59]} (19. f4 {simplifies} g5 20. a4 Qd5 21. Bxa7 Bxd3 22. Bxd3 Qxd3 23. Qf2) 19... Bxe5 {[%emt 0:11:49]} 20. Bc5 {[%emt 0:02:08]} Rd5 {[%emt 0:03:31]} (20... Bxb2 $2 21. Rab1 Rd7 22. Rxb2 $18) (20... Qxb2 21. Qa4 Bd4 22. Qa8+ Kc7 23. Qa5+ Kc8 24. Bxd4 (24. Bxe7 $2 Qxf2+ 25. Kh1 Qg1#) 24... Qxd4 25. Rab1 $16 (25. Rxe7 Rd7 $14)) 21. Bxe7 {[%emt 0:02:57]} (21. Rxe5 $14 {stays ahead.} Rxe5 22. Bd4) 21... Qxb2 $17 {[%emt 0:01:17] Black is more active.} 22. Qa4 {[%emt 0:00:17] This move loses the game for White.} (22. Rac1 $17) 22... Bd4 $19 {[%emt 0:00:34]} ({Much less strong is} 22... Bxd3 23. Bxd3 Bd4 24. Be2 $18) (22... Qxa1 23. Rxa1 Bxa1 24. Bb4 $14) 23. Kh1 {[%emt 0:05:40]} (23. Be2 $142 Qb5 24. Qxb5 Rxb5 25. Rac1) 23... Qxf2 {[%emt 0:08:11][%csl Gd4][%cal Rf2g1]} 24. Bg2 {[%emt 0:00:13]} Bxa1 {[%emt 0:00:16]} 25. Rb1 {[%emt 0:01:53]} (25. Rxa1 Qb2 26. Rf1) 25... Rb5 {[%emt 0:00:54]} 26. Rxa1 {[%emt 0:00:05]} Re8 {[%emt 0:01:56]} 27. Rf1 {[%emt 0:00:17]} Qb6 {[%emt 0:04:49]} 28. Bd6 {[%emt 0:00:54]} Rb1 {[%emt 0:00:47] ( -> ...Ree1)} ({Not} 28... Bxd3 29. Qa8+ (29. Rxf7 $2 {perishes.} Rb1+ $19) 29... Kd7 30. Rxf7+ Kxd6 31. Qxe8 Rb1+ 32. Bf1 Bxf1 33. Qf8+ Ke5 34. Rxf1 $19) 29. Qc2 {[%emt 0:00:42]} Rxf1+ {[%emt 0:00:42][%mdl 64] Remove Defender} 30. Bxf1 {[%emt 0:00:04]} Re1 {[%emt 0:00:49]} 31. Kg2 {[%emt 0:00:15]} Qd4 {[%emt 0:00:51] Black mates.} 32. Bc5 {[%emt 0:01:45]} Qd5+ {[%emt 0:00:07]} 33. Kf2 {[%emt 0:00:03] [#]} Rxf1+ $1 {[%emt 0:00:05][%mdl 64] Remove Defender. A cool game by Jarocka.   Weighted Error Value: White=1.03/Black=0.44} 0-1

[Event "European Women-ch 2023"]
[Site "Petrovac"]
[Date "2023.03.21"]
[Round "4.16"]
[White "Dwilewicz, Katarzyna"]
[Black "Humbatova, Nazli"]
[Result "1-0"]
[ECO "C01"]
[WhiteElo "2114"]
[BlackElo "1737"]
[Annotator "TA"]
[PlyCount "107"]
[EventDate "2023.03.15"]
[EventType "swiss"]
[EventCountry "MNE"]
[SourceTitle "playchess.com"]
[Source "ChessBase"]
[SourceQuality "1"]
[TimeControl "40/5400+30:1800+30"]

{[%evp 9,107,12,23,23,24,26,16,13,38,16,21,12,71,68,76,63,59,61,104,8,15,-7,-15,-19,-28,-67,-70,-65,-50,-46,-57,-110,-42,-33,-7,-32,-36,-36,-33,-29,45,39,43,21,21,0,91,79,54,30,109,102,115,81,85,87,120,126,117,123,135,82,115,111,120,116,226,227,260,239,346,341,1035,747,583,1026,989,976,643,557,1434,1438,5157,4684,2993,2405,1762,1125,29984,29985,29980,29981,29981,29982,29982,29983,29983,29984,29989,29990]} 1. e4 {[%emt 0:00:04]} e6 {[%emt 0:00:04]} 2. d4 {[%emt 0:00:08]} d5 {[%emt 0:00:20]} 3. Bd3 {[%emt 0:00:10]} c5 {[%emt 0:06:02]} 4. exd5 {[%emt 0:00:24]} exd5 {[%emt 0:00:11]} 5. Nf3 {[%emt 0:00:11]} c4 {[%emt 0:03:45]} 6. Be2 {[%emt 0:00:06] C01: French: Exchange Variation.} Bd6 {[%emt 0:00:26]} 7. O-O {[%emt 0:01:28]} Nf6 {[%emt 0:00:14]} 8. b3 {[%emt 0:03:01] The position is equal.} cxb3 $1 {[%emt 0:00:42]} 9. axb3 {[%emt 0:00:05]} O-O {[%emt 0:03:27]} 10. c4 {[%emt 0:04:37]} dxc4 {[%emt 0:02:41]} (10... Nc6 $11 {keeps the balance.}) 11. bxc4 $16 {[%emt 0:00:07]} Nc6 {[%emt 0:13:03]} 12. Bg5 {[%emt 0:02:50] [#]} Re8 $146 {[%emt 0:17:33]} ({Predecessor:} 12... Bg4 13. Nc3 Bxf3 14. Bxf3 Nxd4 15. Bxb7 Rb8 16. Bd5 Bc5 17. Ne4 Qb6 18. Nxf6+ gxf6 {1-0 Damasco,R (2005)-Collins,P Olympiad Women-31 1994 (14)}) 13. Nc3 {[%emt 0:02:06]} h6 {[%emt 0:08:39]} 14. Bh4 {[%emt 0:01:36]} (14. Bxf6 $16 Qxf6 15. c5) 14... g5 $11 {[%emt 0:09:49][%cal Bg7g5,Bg5h4][%mdl 32]} 15. d5 {[%emt 0:13:20]} gxh4 {[%emt 0:08:53]} 16. dxc6 {[%emt 0:00:16]} bxc6 {[%emt 0:00:14]} 17. Qd2 {[%emt 0:09:16] And now Rfd1 would win.} Bb4 {[%emt 0:06:01]} 18. Qxd8 {[%emt 0:00:56]} Rxd8 {[%emt 0:00:01]} 19. Na2 {[%emt 0:00:11][%cal Bc3a2,Ba2c1,Bc1b3,Bb3d2,Bd2e4][%mdl 32]} Bc5 {[%emt 0:04:35]} 20. Nxh4 {[%emt 0:01:29] [#]} (20. Nc3 $15) 20... Rd2 {[%emt 0:03:17] White is weak on the dark squares} (20... Ne4 $1 $17 {Strongly threatening ...a5.} 21. Nc1 a5) 21. Nc1 $15 {[%emt 0:08:18]} Bg4 {[%emt 0:02:13]} 22. Nb3 {[%emt 0:13:40][%csl LRc5,LRd2] aiming for Bxg4.} (22. Nf3 $5 {[%cal Rf3d2]} Rc2 23. h3 $11) 22... Bxe2 {[%emt 0:02:10] A strong pair of Bishops.} 23. Nxd2 {[%emt 0:00:11]} Bxf1 {[%emt 0:00:04]} 24. Kxf1 {[%emt 0:00:09]} Bd4 {[%emt 0:02:00]} (24... a5 $11) 25. Ra6 $14 {[%emt 0:01:06]} Bb6 {[%emt 0:02:41]} 26. Nf5 {[%emt 0:10:58]} Rd8 {[%emt 0:00:48]} 27. Ke2 {[%emt 0:00:24]} Ng4 {[%emt 0:02:00]} (27... Re8+ $11 28. Kf1 Re5) 28. Ne4 $16 {[%emt 0:11:32]} ({Reject} 28. Ne7+ $6 Kf8 29. Nxc6 Re8+ 30. Kf3 Nxh2+ 31. Kg3 Re2 $11) 28... Re8 {[%emt 0:01:24]} 29. Kd3 {[%emt 0:06:33] Hoping for f3.} (29. Kf3 $5 {[%cal Rc4c5]}) 29... Rd8+ {[%emt 0:00:42]} (29... Re5 $11 30. f3 Nf2+ 31. Nxf2 Rxf5) 30. Kc2 {[%emt 0:00:49] c5 would be deadly. White is more active.} Nxf2 {[%emt 0:00:39]} 31. Nxf2 {[%emt 0:00:53]} Bxf2 {[%emt 0:00:01]} 32. Nxh6+ {[%emt 0:02:13][%mdl 4096] Endgame KRB-KRN} Kg7 {[%emt 0:00:05]} 33. Rxc6 {[%emt 0:00:57]} f6 {[%emt 0:01:22]} 34. Nf5+ {[%emt 0:01:10]} Kg6 {[%emt 0:00:09]} 35. Nd6 {[%emt 0:02:07]} ({White should try} 35. Rd6 Rxd6 36. Nxd6) 35... Bg1 {[%emt 0:00:40] [#]} 36. h3 $1 {[%emt 0:00:17]} Be3 {[%emt 0:00:26]} 37. Kd3 {[%emt 0:03:44]} Bf4 {[%emt 0:00:49]} (37... Bg1 $16 {might work better.} 38. Ke4 Rh8) 38. c5 $18 {[%emt 0:00:08]} Rd7 {[%emt 0:00:25]} 39. Ke4 {[%emt 0:00:45]} Be5 {[%emt 0:00:15]} (39... Bh2 {was worth a try.} 40. Kd5 Rh7) 40. Kd5 {[%emt 0:00:00]} Rd8 $2 {[%emt 0:00:00]} (40... Re7 41. Rc8 Bf4) 41. Rc8 {[%emt 0:11:34]} Rxc8 {[%emt 0:03:40]} 42. Nxc8 {[%emt 0:00:19][%cal Oc5c6] c6! is the strong threat. KB-KN} a5 {[%emt 0:00:05]} 43. Nb6 {[%emt 0:05:08]} Kg5 {[%emt 0:14:54]} 44. Ke6 {[%emt 0:10:35] Threatens to win with g4.} Kf4 {[%emt 0:07:25]} 45. g4 {[%emt 0:01:28]} Kg5 {[%emt 0:03:51]} 46. c6 {[%emt 0:00:35]} Bg3 {[%emt 0:01:50]} 47. Na4 {[%emt 0:01:59]} Bh2 {[%emt 0:02:07]} 48. Nc5 {[%emt 0:00:11] Intending Ne4+ and mate.} ({Less strong is} 48. Kd7 Kh4 $16) 48... Bf4 {[%emt 0:01:01]} 49. Ne4+ {[%emt 0:00:58] White mates.} (49. Kd7 Kh4 $11) 49... Kh4 {[%emt 0:00:05]} 50. Kxf6 {[%emt 0:00:50]} a4 {[%emt 0:00:11]} 51. Nc3 {[%emt 0:01:42]} a3 {[%emt 0:00:53]} 52. Kf5 {[%emt 0:00:44]} Bc7 {[%emt 0:00:16]} 53. g5 {[%emt 0:00:28][%cal Bg4g5,Bg5g6][%mdl 32]} Kxh3 {[%emt 0:00:23]} 54. g6 {[%emt 0:00:08] Weighted Error Value: White=0.12 (very precise) /Black=0.35} 1-0

[Event "European Women-ch 2023"]
[Site "Petrovac"]
[Date "2023.03.21"]
[Round "4.17"]
[White "Sargsyan, Anna M."]
[Black "Lach, Aleksandra"]
[Result "1-0"]
[ECO "B75"]
[WhiteElo "2371"]
[BlackElo "2170"]
[Annotator "TA"]
[PlyCount "67"]
[EventDate "2023.03.15"]
[EventType "swiss"]
[EventCountry "MNE"]
[SourceTitle "playchess.com"]
[Source "ChessBase"]
[SourceQuality "1"]
[TimeControl "40/5400+30:1800+30"]

{[%evp 14,67,57,55,65,54,49,9,23,45,44,53,29,19,84,76,85,90,93,95,88,52,106,117,243,240,247,227,244,239,227,218,297,310,296,303,315,306,309,296,389,390,364,344,829,828,963,963,891,891,962,962,946,928,934,884]} 1. e4 {[%emt 0:01:58]} c5 {[%emt 0:00:55]} 2. Nf3 {[%emt 0:00:08]} d6 {[%emt 0:00:20]} 3. d4 {[%emt 0:01:22]} cxd4 {[%emt 0:00:23]} 4. Nxd4 {[%emt 0:00:07]} Nf6 {[%emt 0:00:29]} 5. Nc3 {[%emt 0:00:12]} g6 {[%emt 0:00:31]} 6. Be3 {[%emt 0:00:10]} Bg7 {[%emt 0:00:12]} 7. f3 {[%emt 0:00:08]} a6 {[%emt 0:00:24]} 8. Qd2 {[%emt 0:00:21]} h5 {[%emt 0:01:45] B75: Sicilian Dragon: Yugoslav Attack, Miscellaneous.} 9. h3 {[%emt 0:00:53] White is more active. 9.Be2 is setting a new trend.} Nbd7 {[%emt 0:12:21]} 10. O-O-O {[%emt 0:01:03]} Qc7 {[%emt 0:19:49] [#] The position is equal.} 11. f4 $146 {[%emt 0:19:53]} ({Predecessor:} 11. Rg1 Ne5 12. g4 hxg4 13. hxg4 Be6 14. g5 Nh7 15. f4 Nc4 16. Bxc4 Qxc4 17. f5 {1-0 Perez Mitjans,O (2403)-Gonzalez Rodriguez,R (2196) Vallfogona rapid op 25th 2017 (9)}) 11... b5 {[%emt 0:14:27]} 12. f5 $1 {[%emt 0:13:17] fxg6 would be deadly.} Ne5 {[%emt 0:19:26]} 13. fxg6 {[%emt 0:00:24]} Nxg6 {[%emt 0:03:26]} (13... fxg6 $11 14. Nf3 Be6) 14. Kb1 $1 $16 {[%emt 0:02:07]} Bd7 {[%emt 0:09:46]} 15. Bd3 {[%emt 0:09:09]} Ne5 {[%emt 0:01:03]} 16. Bg5 $1 {[%emt 0:00:56]} b4 {[%emt 0:01:14]} 17. Nce2 {[%emt 0:01:57]} Qb7 {[%emt 0:04:09] [#]} (17... Qc5 $14) 18. Ng3 $1 {[%emt 0:00:29]} e6 {[%emt 0:03:40] Wards off Ndf5. This move loses the game for Black.} (18... Rg8 $16 {was called for.}) 19. Rhf1 $18 {[%emt 0:01:27]} h4 {[%emt 0:01:26]} 20. Bxf6 {[%emt 0:01:35]} Bxf6 {[%emt 0:00:02]} 21. Rxf6 {[%emt 0:00:11]} hxg3 {[%emt 0:00:01] [#]} 22. Nf3 $1 {[%emt 0:01:26]} Bc6 {[%emt 0:01:39]} 23. Nxe5 {[%emt 0:00:43]} dxe5 {[%emt 0:00:01]} 24. Rdf1 {[%emt 0:00:27]} O-O-O {[%emt 0:02:56]} 25. Rxf7 {[%emt 0:00:43]} Qb6 {[%emt 0:00:28]} 26. Qg5 {[%emt 0:00:52][%csl LRe5,LRg3]} Qd4 {[%emt 0:01:00]} 27. Qe7 {[%emt 0:03:05][%csl Gf7][%cal Re7c7]} ({But not} 27. Bxa6+ Kb8 28. Bd3 (28. Qxg3 $2 Qd1+ {[%mdl 64] Back Rank} 29. Rxd1 Rxd1#) 28... Rc8 29. Qxg3 Bxe4 30. Bxe4 Qxe4 $18) (27. Qxg3 Bxe4 28. Rc1 (28. Bxa6+ Kb8 $18) 28... Rhg8 29. Bxa6+ Kb8 $18) 27... Bd7 {[%emt 0:00:32]} 28. Rd1 {[%emt 0:00:10]} Rhe8 $2 {[%emt 0:00:42]} (28... Kb8 29. Be2 {[%mdl 64] Discovered Attack} Qb6) 29. Bxa6+ {[%emt 0:00:22] White is clearly winning.} Kc7 {[%emt 0:01:00]} 30. Qxd7+ {[%emt 0:02:24]} Rxd7 {[%emt 0:00:36]} 31. Rxd7+ {[%emt 0:00:07]} (31. Rxd4 $2 {loses.} Rxf7 32. Rxb4 Rb8 33. Rxb8 Kxb8 $19) 31... Kb6 {[%emt 0:00:39]} 32. R1xd4 {[%emt 0:00:27]} exd4 {[%emt 0:00:08]} 33. Be2 {[%emt 0:00:05]} Rf8 {[%emt 0:00:41]} 34. Bf3 {[%emt 0:00:07] Weighted Error Value: White=0.04 (flawless) /Black=0.28 (precise)} 1-0

[Event "European Women-ch 2023"]
[Site "Petrovac"]
[Date "2023.03.21"]
[Round "4.17"]
[White "Spalir, Monika"]
[Black "Bakalarz, Grazyna"]
[Result "1-0"]
[ECO "C42"]
[WhiteElo "2125"]
[BlackElo "1847"]
[Annotator "TA"]
[PlyCount "83"]
[EventDate "2023.03.15"]
[EventType "swiss"]
[EventCountry "MNE"]
[SourceTitle "playchess.com"]
[Source "ChessBase"]
[SourceQuality "1"]
[TimeControl "40/5400+30:1800+30"]

{[%evp 9,83,58,82,12,30,21,21,0,18,14,48,43,51,45,67,68,118,102,97,94,88,82,82,74,76,78,95,56,76,74,75,72,70,33,33,33,49,25,33,8,70,0,33,13,36,20,40,12,37,37,76,70,71,4,43,42,115,112,91,36,159,168,402,423,421,430,693,689,647,571,569,556,582,589,554,548]} 1. e4 {[%emt 0:00:03]} e5 {[%emt 0:00:16]} 2. Nf3 {[%emt 0:00:04]} Nf6 {[%emt 0:00:09]} 3. Nxe5 {[%emt 0:00:50]} Nxe4 {[%emt 0:00:12]} 4. Qe2 {[%emt 0:03:12]} Qe7 {[%emt 0:00:09]} 5. Qxe4 {[%emt 0:00:42]} d6 $1 {[%emt 0:00:10] [#]} 6. Nc3 {[%emt 0:06:05] C42: Petroff Defence: 3 Nxe5 and unusual White 3rd moves.} Qxe5 {[%emt 0:02:16]} 7. Qxe5+ {[%emt 0:04:00]} dxe5 {[%emt 0:00:02]} 8. Bc4 {[%emt 0:00:14] The position is equal.} (8. d4 $5 {[%cal Rd4e5]}) 8... Bc5 {[%emt 0:08:02]} 9. d3 {[%emt 0:02:10]} O-O {[%emt 0:01:54]} 10. Be3 {[%emt 0:00:25] [#]} Bxe3 $146 {[%emt 0:04:10]} ({Predecessor:} 10... Bb4 11. O-O Bxc3 12. bxc3 Nc6 13. f4 Re8 14. Rae1 Be6 15. Bxe6 Rxe6 16. fxe5 Rxe5 {0-1 Lavrov,M (2401)-Ponkratov,P (2631) EU-ch Online 2300+ Qual 2020 (2)}) 11. fxe3 {[%emt 0:00:20]} c6 {[%emt 0:00:13]} 12. O-O {[%emt 0:02:10][%cal Of1f7]} b5 {[%emt 0:08:56]} (12... Nd7 $14) 13. Bb3 {[%emt 0:00:15][%cal Of1f7] aiming for Rxf7! White is more active.} Be6 {[%emt 0:01:49]} 14. Bxe6 {[%emt 0:04:51]} fxe6 {[%emt 0:00:03]} 15. Rxf8+ {[%emt 0:00:39]} Kxf8 $16 {[%emt 0:00:02][%mdl 4096] Endgame KRN-KRN} 16. Ne4 {[%emt 0:00:13]} Ke7 {[%emt 0:01:32]} 17. a4 {[%emt 0:02:00]} b4 {[%emt 0:05:08]} 18. a5 {[%emt 0:05:02]} Na6 {[%emt 0:05:33]} 19. Kf2 {[%emt 0:07:12]} Rb8 {[%emt 0:05:31]} 20. Ke2 {[%emt 0:02:04]} Rb5 {[%emt 0:02:59]} 21. b3 {[%emt 0:05:14]} Nc5 {[%emt 0:04:23]} 22. Nd2 {[%emt 0:05:05]} a6 {[%emt 0:04:54]} 23. Nc4 {[%emt 0:03:46]} Nb7 {[%emt 0:04:48]} 24. Kd2 {[%emt 0:05:40]} Nc5 {[%emt 0:09:05]} (24... e4 $11) 25. Ke2 {[%emt 0:05:26]} ({Much worse is} 25. Nxe5 Nxb3+ 26. cxb3 Rxe5 $11) 25... Nb7 {[%emt 0:00:23]} 26. Ra2 {[%emt 0:02:48]} Kf6 {[%emt 0:02:53]} 27. Ra4 {[%emt 0:05:02]} Ke7 {[%emt 0:00:57][%cal Oe5e4]} 28. Ra1 {[%emt 0:01:54]} Kf6 {[%emt 0:05:59]} 29. Kd2 {[%emt 0:05:12]} Nc5 {[%emt 0:05:10]} 30. Nd6 {[%emt 0:06:47]} Rb8 {[%emt 0:00:23]} 31. d4 {[%emt 0:03:41]} (31. Rf1+ $16 Ke7 32. Nc4) 31... exd4 {[%emt 0:02:29]} 32. exd4 {[%emt 0:00:04]} Nb7 {[%emt 0:03:23]} (32... Nd7 $14) 33. Ne4+ {[%emt 0:00:10]} Ke7 {[%emt 0:04:24] [#]} 34. Kd3 {[%emt 0:01:28]} ({Better is} 34. Ra4 $1 $16 {[%cal Ra4b4]} c5 35. dxc5 (35. Nxc5 Nxc5 36. dxc5 Rb5 $14)) 34... Rf8 {[%emt 0:02:46] [#]} (34... e5 $14) 35. Ra4 $1 {[%emt 0:01:14]} Rf5 $2 {[%emt 0:03:39]} (35... Rb8 36. Ke3 (36. Rxb4 Nc5+ 37. Nxc5 Rxb4 $14) 36... c5) 36. Rxb4 $18 {[%emt 0:01:50]} Nxa5 {[%emt 0:00:57] White is clearly winning.} 37. Rb6 {[%emt 0:00:27]} e5 {[%emt 0:00:54]} (37... Rb5 $142) 38. b4 {[%emt 0:04:09]} exd4 {[%emt 0:00:33]} 39. bxa5 {[%emt 0:00:13]} Rxa5 {[%emt 0:00:08]} 40. Rxc6 {[%emt 0:00:00]} Ra1 {[%emt 0:00:00]} 41. Rc7+ {[%emt 0:02:30]} Kf8 {[%emt 0:04:09]} 42. Kxd4 {[%emt 0:00:20] Weighted Error Value: White=0.20 (precise) /Black=0.33} 1-0

[Event "European Women-ch 2023"]
[Site "Petrovac"]
[Date "2023.03.21"]
[Round "4.18"]
[White "Gaboyan, Susanna"]
[Black "Melia, Salome"]
[Result "1/2-1/2"]
[ECO "B20"]
[WhiteElo "2160"]
[BlackElo "2366"]
[Annotator "TA"]
[PlyCount "95"]
[EventDate "2023.03.15"]
[EventType "swiss"]
[EventCountry "MNE"]
[SourceTitle "playchess.com"]
[Source "ChessBase"]
[SourceQuality "1"]
[TimeControl "40/5400+30:1800+30"]

{[%evp 9,95,-10,-12,-8,-8,-9,0,-9,17,0,5,-5,-12,4,6,-33,-8,-55,-38,-81,-74,-77,-81,-93,-93,-91,-90,-185,-184,-309,-305,-284,-255,-361,-361,-370,-360,-357,-317,-320,-183,-177,-156,-170,-147,-160,-141,-146,-90,-99,-99,-99,-97,-140,-136,-133,-142,-129,-63,-100,-93,-177,-149,-188,-189,-150,0,0,0,0,0,0,0,0,0,0,0,-8,0,-8,-8,-8,0,-8,0,-90,0,-149]} 1. e4 {[%emt 0:00:04]} c5 {[%emt 0:02:19]} 2. Nc3 {[%emt 0:00:10]} e6 {[%emt 0:02:49]} 3. Bc4 {[%emt 0:02:48]} a6 {[%emt 0:01:24]} 4. a4 {[%emt 0:02:24]} Ne7 {[%emt 0:01:37]} 5. d3 {[%emt 0:11:32]} Nbc6 {[%emt 0:08:25]} 6. Nf3 {[%emt 0:03:46] B20: Sicilian: Unusual White 2nd moves.} d5 {[%emt 0:00:29]} 7. Bb3 {[%emt 0:01:50]} d4 {[%emt 0:10:58]} 8. Ne2 {[%emt 0:01:04] [#]} g6 $146 {[%emt 0:00:05]} ({Predecessor:} 8... Ng6 9. h4 Be7 10. h5 Nh4 11. Nxh4 Bxh4 12. g3 Bf6 13. f4 e5 14. f5 h6 {1-0 Sochor,J (2243)-Novacek,J (2137) CZE-chT2B 1415 2014 (7.3)}) 9. h4 {[%emt 0:01:36]} h6 {[%emt 0:00:15]} 10. Ng3 {[%emt 0:07:51]} Bg7 {[%emt 0:00:54]} 11. O-O {[%emt 0:04:34]} O-O {[%emt 0:06:19][%cal Be8g8,Bg8h7,Bh7g6][%mdl 32]} 12. e5 {[%emt 0:06:35]} Qc7 {[%emt 0:16:03]} (12... Bxe5 $2 13. Nxe5 (13. Bxh6 Bg7 $16) 13... Nxe5 14. Bxh6 $18) 13. Bf4 {[%emt 0:07:47]} (13. Re1 $11) 13... Nd5 $15 {[%emt 0:07:11]} (13... Bxe5 $2 14. Nxe5 (14. Bxh6 Bg7 $16) 14... Nxe5 15. Re1 $18) 14. Bxd5 {[%emt 0:00:58]} exd5 {[%emt 0:00:02]} 15. Qd2 {[%emt 0:00:39]} Kh7 {[%emt 0:01:24]} ({Don't play} 15... Bxe5 16. Nxe5 (16. Bxh6 Re8 $11) 16... Nxe5 17. Rae1 $18 (17. Bxh6 Re8 $11)) 16. e6 {[%emt 0:07:06]} Qd8 {[%emt 0:00:19]} 17. exf7 {[%emt 0:01:11]} Rxf7 {[%emt 0:00:03] ...Qf6 is the strong threat.} 18. h5 {[%emt 0:03:13]} (18. Rfe1 $17 {might work better.}) 18... Qf6 {[%emt 0:15:18]} 19. hxg6+ {[%emt 0:10:14]} (19. Bg5 $142 Qd6 20. hxg6+ Qxg6 21. Bf4) 19... Kxg6 $19 {[%emt 0:00:16]} 20. Ne2 {[%emt 0:01:00]} Bg4 $1 {[%emt 0:00:17] Hoping for ...Kh7.} 21. Bg3 {[%emt 0:00:58]} (21. Kh1 {was called for.}) 21... Bxf3 {[%emt 0:00:15]} 22. Nf4+ {[%emt 0:00:18]} Kh7 {[%emt 0:00:14]} 23. gxf3 {[%emt 0:00:06]} Qg5 {[%emt 0:06:07]} 24. Rad1 {[%emt 0:03:28]} Ne5 {[%emt 0:04:20]} (24... Qf5 $142 25. c4 dxc3 26. bxc3 d4) 25. Kg2 {[%emt 0:01:25] [#]} Nxf3 $1 {[%emt 0:00:58][%mdl 576] Clearance} 26. Kxf3 {[%emt 0:00:19]} Be5 {[%emt 0:00:21]} 27. Rde1 {[%emt 0:13:41][%cal Oe1e5]} Bxf4 {[%emt 0:05:01]} 28. Bxf4 {[%emt 0:00:09]} Raf8 {[%emt 0:05:30]} (28... Qh5+ $142 29. Kg2 Rg8+ 30. Bg3 Qf3+ 31. Kg1 Rfg7) 29. Ke2 $17 {[%emt 0:00:15]} Qh5+ {[%emt 0:00:51]} 30. f3 {[%emt 0:00:08] And now Rh1 would win.} Rxf4 {[%emt 0:00:07]} 31. Qa5 {[%emt 0:01:34]} Rxf3 {[%emt 0:00:58]} 32. Rxf3 {[%emt 0:00:20]} Rxf3 {[%emt 0:03:03][%mdl 4096] Endgame KQR-KQR} 33. Kd2 {[%emt 0:00:08]} Qh2+ {[%emt 0:01:18]} (33... Qg5+ $1 $17 34. Kd1 Re3 35. Qc7+ Qg7) 34. Kd1 {[%emt 0:01:12]} Qd6 {[%emt 0:01:26]} 35. Qd2 {[%emt 0:02:04]} (35. Kc1 $17 {keeps fighting.}) 35... b5 $19 {[%emt 0:00:18]} 36. axb5 {[%emt 0:01:15]} axb5 {[%emt 0:00:01]} 37. Qa5 {[%emt 0:00:03] [#]} Re3 {[%emt 0:01:12]} (37... Rf7 $1 $17 {White must now prevent ...c4.} 38. Qa8 Rg7) 38. Qa7+ $11 {[%emt 0:01:22]} Kg6 {[%emt 0:00:18] Strongly threatening ...Rxe1+.} 39. Rg1+ {[%emt 0:00:11]} Rg3 $1 {[%emt 0:00:35]} 40. Rf1 {[%emt 0:00:00] White wants to mate with Qf7+.} Qe6 {[%emt 0:00:00] Prevents Qf7+} 41. Qxc5 {[%emt 0:04:03]} h5 {[%emt 0:14:49]} 42. Qf8 {[%emt 0:07:48]} h4 {[%emt 0:07:33]} 43. Re1 {[%emt 0:01:01] Chess con chili.} Qf7 {[%emt 0:07:52]} 44. Qd6+ {[%emt 0:02:03]} Kh5 {[%emt 0:01:25] ...Kg4 would be deadly.} 45. Qe5+ {[%emt 0:05:50]} Kg6 {[%emt 0:00:01]} 46. Qd6+ {[%emt 0:00:38]} Kh5 {[%emt 0:00:54]} ({Better is} 46... Kg5 $11 47. Qe5+ Kg4 48. Qxd4+ Qf4 49. Qxd5 Qf3+ 50. Qxf3+ Kxf3 51. Rf1+ Kg4) 47. Qe5+ $17 {[%emt 0:00:07] [#]} Kg6 {[%emt 0:00:23]} ({Black should try} 47... Kg4 $1 48. Qxd4+ Qf4) 48. Qd6+ {[%emt 0:02:46] And White is the lucky defender.   Weighted Error Value: White=0.18 (very precise) /Black=0.20 (precise)} 1/2-1/2